lending/lending_fUSD_20250516
["ID","MTS","AMOUNT","RATE_DAILY","PERIOD"]
[361275853,1747414241019,-400.0,0.00016438,2]
[361275854,1747414241028,-330.41436041,0.00016438,2]
[361275855,1747414241038,-400.0,0.00016438,2]
[361275856,1747414241047,-400.0,0.00016438,2]
[361275857,1747414241056,-512.18732341,0.00016438,2]
[361275858,1747414241065,-400.0,0.00016438,2]
[361275859,1747414241075,-418.58,0.00016438,2]
[361275860,1747414241084,-586.82,0.00016438,2]
[361275861,1747414241094,-400.0,0.00016438,2]
[361275862,1747414241104,-549.67,0.00016438,2]
[361275863,1747414241115,-400.0,0.00016438,2]
[361275864,1747414241126,-400.0,0.00016438,2]
[361275865,1747414241136,-400.0,0.00016438,2]
[361275866,1747414241146,-400.0,0.00016438,2]
[361275867,1747414241157,-400.0,0.00016438,2]
[361275868,1747414241167,-400.0,0.00016438,2]
[361275869,1747414241177,-400.0,0.00016438,2]
[361275870,1747414241188,-400.0,0.00016438,2]
[361275871,1747414241199,-400.0,0.00016438,2]
[361275872,1747414241210,-410.43,0.00016438,2]
[361275873,1747414241221,-400.0,0.00016438,2]
[361275874,1747414241231,-400.0,0.00016438,2]
[361275875,1747414241242,-400.0,0.00016438,2]
[361275876,1747414241254,-400.0,0.00016438,2]
[361275877,1747414241264,-400.0,0.00016438,2]
[361275878,1747414241275,-280.99473706,0.00016438,2]
[361275879,1747414241286,-400.0,0.00016438,2]
[361275880,1747414241297,-779.2,0.00016438,2]
[361275881,1747414241307,-400.0,0.00016438,2]
[361275882,1747414241318,-400.0,0.00016438,2]
[361275883,1747414241329,-400.0,0.00016438,2]
[361275884,1747414241341,-400.0,0.00016438,2]
[361275885,1747414241351,-400.0,0.00016438,2]
[361275886,1747414241363,-400.0,0.00016438,2]
[361275887,1747414241375,-400.0,0.00016438,2]
[361275888,1747414241386,-400.0,0.00016438,2]
[361275889,1747414241397,-400.0,0.00016438,2]
[361275890,1747414241408,-400.0,0.00016438,2]
[361275891,1747414241418,-400.0,0.00016438,2]
[361275892,1747414241428,-497.39,0.00016438,2]
[361275893,1747414241438,-404.08487792,0.00016438,2]
[361275894,1747414241448,-774.8,0.00016438,2]
[361275895,1747414241459,-151.0,0.00016438,2]
[361275896,1747414241470,-400.0,0.00016438,2]
[361275897,1747414241480,-400.0,0.00016438,2]
[361275898,1747414241490,-490.37,0.00016438,2]
[361275899,1747414241502,-611.26,0.00016438,2]
[361275900,1747414241513,-400.0,0.00016438,2]
[361275901,1747414241524,-400.0,0.00016438,2]
[361275902,1747414241540,-400.0,0.00016438,2]
[361275903,1747414241551,-400.0,0.00016438,2]
[361275904,1747414241562,-400.0,0.00016438,2]
[361275905,1747414241572,-400.0,0.00016438,2]
[361275906,1747414241586,-577.01,0.00016438,2]
[361275907,1747414241597,-400.0,0.00016438,2]
[361275908,1747414241608,-400.0,0.00016438,2]
[361275909,1747414241619,-400.0,0.00016438,2]
[361275910,1747414241631,-832.14,0.00016438,2]
[361275911,1747414241642,-435.72,0.00016438,2]
[361275912,1747414241653,-400.0,0.00016438,2]
[361275913,1747414241664,-400.0,0.00016438,2]
[361275914,1747414241675,-400.0,0.00016438,2]
[361275915,1747414241686,-581.95,0.00016438,2]
[361275916,1747414241697,-421.55,0.00016438,2]
[361275917,1747414241708,-400.0,0.00016438,2]
[361275918,1747414241719,-400.0,0.00016438,2]
[361275919,1747414241730,-400.0,0.00016438,2]
[361275920,1747414241740,-400.0,0.00016438,2]
[361275921,1747414241751,-400.0,0.00016438,2]
[361275922,1747414241762,-151.0,0.00016438,2]
[361275923,1747414241772,-151.0,0.00016438,2]
[361275924,1747414241783,-400.0,0.00016438,2]
[361275925,1747414241794,-561.94,0.00016438,2]
[361275926,1747414241804,-151.0,0.00016438,2]
[361275927,1747414241816,-151.0,0.00016438,2]
[361275928,1747414241826,-400.0,0.00016438,2]
[361275929,1747414241837,-400.0,0.00016438,2]
[361275930,1747414241848,-400.0,0.00016438,2]
[361275931,1747414241858,-235.93622442,0.00016438,2]
[361275932,1747414241869,-400.0,0.00016438,2]
[361275933,1747414241880,-400.0,0.00016438,2]
[361275934,1747414241890,-404.21313679,0.00016438,2]
[361275935,1747414241901,-470.88,0.00016438,2]
[361275936,1747414241913,-400.0,0.00016438,2]
[361275937,1747414241924,-400.0,0.00016438,2]
[361275938,1747414241936,-400.0,0.00016438,2]
[361275939,1747414241947,-400.0,0.00016438,2]
[361275940,1747414241959,-400.0,0.00016438,2]
[361275941,1747414241969,-400.0,0.00016438,2]
[361275942,1747414241980,-665.35,0.00016438,2]
[361275943,1747414241991,-151.0,0.00016438,2]
[361275944,1747414242001,-151.0,0.00016438,2]
[361275945,1747414242012,-151.0,0.00016438,2]
[361275946,1747414242023,-400.0,0.00016438,2]
[361275947,1747414242033,-151.0,0.00016438,2]
[361275948,1747414242044,-400.0,0.00016438,2]
[361275949,1747414242055,-151.0,0.00016438,2]
[361275950,1747414242065,-517.42,0.00016438,2]
[361275951,1747414242076,-151.0,0.00016438,2]
[361275952,1747414242087,-400.0,0.00016438,2]
[361275953,1747414242098,-527.42,0.00016438,2]
[361275954,1747414242108,-151.0,0.00016438,2]
[361275955,1747414242119,-151.0,0.00016438,2]
[361275956,1747414242131,-151.0,0.00016438,2]
[361275957,1747414242144,-151.0,0.00016438,2]
[361275958,1747414242157,-400.0,0.00016438,2]
[361275959,1747414242168,-461.35,0.00016438,2]
[361275960,1747414242178,-532.85,0.00016438,2]
[361275961,1747414242188,-400.0,0.00016438,2]
[361275962,1747414242199,-426.95,0.00016438,2]
[361275963,1747414242209,-400.0,0.00016438,2]
[361275964,1747414242220,-200.0,0.00016438,2]
[361275965,1747414242230,-400.0,0.00016438,2]
[361275966,1747414242240,-400.0,0.00016438,2]
[361275967,1747414242250,-400.0,0.00016438,2]
[361275968,1747414242260,-151.0,0.00016438,2]
[361275969,1747414242271,-400.0,0.00016438,2]
[361275970,1747414242281,-400.0,0.00016438,2]
[361275971,1747414242292,-663.37,0.00016438,2]
[361275972,1747414242303,-400.0,0.00016438,2]
[361275973,1747414242314,-843.57,0.00016438,2]
[361275974,1747414242326,-914.55,0.00016438,2]
[361275975,1747414242338,-1414.03,0.00016438,2]
[361275976,1747414242349,-400.0,0.00016438,2]
[361275977,1747414242360,-400.0,0.00016438,2]
[361275978,1747414242370,-400.0,0.00016438,2]
[361275979,1747414242382,-400.0,0.00016438,2]
[361275980,1747414242392,-400.0,0.00016438,2]
[361275981,1747414242403,-1135.43,0.00016438,2]
[361275982,1747414242413,-400.0,0.00016438,2]
[361275983,1747414242424,-400.0,0.00016438,2]
[361275984,1747414242434,-822.14,0.00016438,2]
[361275985,1747414242445,-426.63,0.00016438,2]
[361275986,1747414242455,-1317.8,0.00016438,2]
[361275987,1747414242465,-400.0,0.00016438,2]
[361275988,1747414242476,-400.0,0.00016438,2]
[361275989,1747414242487,-942.52,0.00016438,2]
[361275990,1747414242498,-427.77,0.00016438,2]
[361275991,1747414242508,-400.0,0.00016438,2]
[361275992,1747414242519,-425.7,0.00016438,2]
[361275993,1747414242530,-967.86,0.00016438,2]
[361275994,1747414242542,-1348.64,0.00016438,2]
[361275995,1747414242552,-631.0,0.00016438,2]
[361275997,1747414242562,-1070.01,0.00016438,2]
[361275998,1747414242572,-400.0,0.00016438,2]
[361275999,1747414242584,-151.0,0.00016438,2]
[361276000,1747414242595,-400.0,0.00016438,2]
[361276001,1747414242605,-1722.4,0.00016438,2]
[361276003,1747414242616,-537.92,0.00016438,2]
[361276005,1747414242628,-634.53,0.00016438,2]
[361276007,1747414242639,-614.1,0.00016438,2]
[361276008,1747414242649,-400.0,0.00016438,2]
[361276009,1747414242660,-1537.17,0.00016438,2]
[361276010,1747414242670,-957.24,0.00016438,2]
[361276011,1747414242680,-151.0,0.00016438,2]
[361276013,1747414242691,-219.12113636,0.00016438,2]
[361276015,1747414242702,-151.0,0.00016438,2]
[361276017,1747414242717,-951.41,0.00016438,2]
[361276020,1747414242729,-1095.61,0.00016438,2]
[361276022,1747414242744,-505.74,0.00016438,2]
[361276025,1747414242758,-400.0,0.00016438,2]
[361276027,1747414242770,-920.63,0.00016438,2]
[361276029,1747414242781,-493.9,0.00016438,2]
[361276031,1747414242792,-400.0,0.00016438,2]
[361276032,1747414242804,-400.0,0.00016438,2]
[361276033,1747414242816,-400.0,0.00016438,2]
[361276034,1747414242827,-425.22822967,0.00016438,2]
[361276035,1747414242841,-1604.4,0.00016438,2]
[361276036,1747414242853,-535.03,0.00016438,2]
[361276037,1747414242867,-400.0,0.00016438,2]
[361276038,1747414242879,-997.49,0.00016438,2]
[361276039,1747414242891,-400.0,0.00016438,2]
[361276040,1747414242902,-707.47,0.00016438,2]
[361276041,1747414242912,-529.97,0.00016438,2]
[361276042,1747414242923,-400.0,0.00016438,2]
[361276043,1747414242935,-560.63,0.00016438,2]
[361276044,1747414242947,-921.47,0.00016438,2]
[361276045,1747414242959,-400.0,0.00016438,2]
[361276046,1747414242971,-400.0,0.00016438,2]
[361276047,1747414242982,-400.0,0.00016438,2]
[361276048,1747414242994,-435.86,0.00016438,2]
[361276049,1747414243007,-412.0,0.00016438,2]
[361276050,1747414243019,-904.44,0.00016438,2]
[361276051,1747414243033,-935.65,0.00016438,2]
[361276052,1747414243046,-1139.71,0.00016438,2]
[361276053,1747414243058,-400.0,0.00016438,2]
[361276054,1747414243071,-537.18,0.00016438,2]
[361276055,1747414243082,-605.94,0.00016438,2]
[361276056,1747414243094,-400.0,0.00016438,2]
[361276057,1747414243106,-673.14,0.00016438,2]
[361276058,1747414243118,-400.0,0.00016438,2]
[361276060,1747414243129,-400.0,0.00016438,2]
[361276062,1747414243140,-400.0,0.00016438,2]
[361276064,1747414243151,-400.0,0.00016438,2]
[361276067,1747414243164,-400.0,0.00016438,2]
[361276069,1747414243175,-400.0,0.00016438,2]
[361276071,1747414243186,-400.0,0.00016438,2]
[361276073,1747414243198,-759.83,0.00016438,2]
[361276076,1747414243208,-891.83,0.00016438,2]
[361276078,1747414243218,-547.62,0.00016438,2]
[361276080,1747414243228,-749.38,0.00016438,2]
[361276082,1747414243239,-400.0,0.00016438,2]
[361276083,1747414243250,-400.0,0.00016438,2]
[361276085,1747414243264,-151.0,0.00016438,2]
[361276086,1747414243275,-151.0,0.00016438,2]
[361276087,1747414243285,-151.0,0.00016438,2]
[361276089,1747414243296,-1151.47,0.00016438,2]
[361276090,1747414243306,-400.0,0.00016438,2]
[361276091,1747414243318,-151.0,0.00016438,2]
[361276092,1747414243330,-151.0,0.00016438,2]
[361276093,1747414243343,-297.327564,0.00016438,2]
[361276094,1747414243355,-686.76,0.00016438,2]
[361276095,1747414243366,-834.46,0.00016438,2]
[361276096,1747414243376,-770.2,0.00016438,2]
[361276097,1747414243386,-870.55,0.00016438,2]
[361276098,1747414243397,-638.23,0.00016438,2]
[361276099,1747414243407,-581.73,0.00016438,2]
[361276100,1747414243418,-400.0,0.00016438,2]
[361276101,1747414243429,-494.37,0.00016438,2]
[361276102,1747414243440,-400.0,0.00016438,2]
[361276103,1747414243451,-400.0,0.00016438,2]
[361276104,1747414243461,-151.0,0.00016438,2]
[361276105,1747414243472,-584.1,0.00016438,2]
[361276106,1747414243483,-151.0,0.00016438,2]
[361276107,1747414243494,-400.0,0.00016438,2]
[361276108,1747414243505,-595.44,0.00016438,2]
[361276109,1747414243516,-400.0,0.00016438,2]
[361276110,1747414243527,-1607.44,0.00016438,2]
[361276111,1747414243542,-1036.23,0.00016438,2]
[361276112,1747414243553,-400.0,0.00016438,2]
[361276113,1747414243575,-400.0,0.00016438,2]
[361276114,1747414243587,-582.73,0.00016438,2]
[361276115,1747414243599,-1043.25,0.00016438,2]
[361276116,1747414243610,-400.0,0.00016438,2]
[361276117,1747414243623,-556.16,0.00016438,2]
[361276118,1747414243635,-400.0,0.00016438,2]
[361276119,1747414243646,-1314.86,0.00016438,2]
[361276120,1747414243658,-688.06,0.00016438,2]
[361276121,1747414243682,-547.51,0.00016438,2]
[361276122,1747414243695,-738.7,0.00016438,2]
[361276123,1747414243708,-600.88,0.00016438,2]
[361276124,1747414243722,-400.0,0.00016438,2]
[361276125,1747414243735,-732.09,0.00016438,2]
[361276126,1747414243749,-463.06,0.00016438,2]
[361276127,1747414243763,-400.0,0.00016438,2]
[361276128,1747414243776,-628.67,0.00016438,2]
[361276129,1747414243789,-587.62,0.00016438,2]
[361276130,1747414243803,-416.22,0.00016438,2]
[361276131,1747414243816,-1048.72,0.00016438,2]
[361276132,1747414243829,-799.7,0.00016438,2]
[361276133,1747414243842,-1153.38,0.00016438,2]
[361276134,1747414243855,-669.71,0.00016438,2]
[361276135,1747414243867,-517.51645801,0.00016438,2]
[361276136,1747414243879,-400.0,0.00016438,2]
[361276137,1747414243892,-400.0,0.00016438,2]
[361276138,1747414243905,-535.43,0.00016438,2]
[361276139,1747414243916,-1342.29,0.00016438,2]
[361276140,1747414243929,-542.30688628,0.00016438,2]
[361276141,1747414243940,-400.0,0.00016438,2]
[361276142,1747414243952,-400.0,0.00016438,2]
[361276143,1747414243964,-151.0,0.00016438,2]
[361276144,1747414243976,-151.0,0.00016438,2]
[361276145,1747414243987,-617.13,0.00016438,2]
[361276146,1747414243999,-505.22,0.00016438,2]
[361276147,1747414244010,-539.12,0.00016438,2]
[361276148,1747414244021,-400.0,0.00016438,2]
[361276149,1747414244032,-470.0,0.00016438,2]
[361276150,1747414244044,-400.0,0.00016438,2]
[361276151,1747414244055,-1870.29,0.00016438,2]
[361276152,1747414244066,-437.21,0.00016438,2]
[361276153,1747414244078,-400.0,0.00016438,2]
[361276154,1747414244091,-400.0,0.00016438,2]
[361276155,1747414244102,-786.79,0.00016438,2]
[361276156,1747414244114,-1300.18,0.00016438,2]
[361276157,1747414244125,-557.79,0.00016438,2]
[361276158,1747414244136,-400.0,0.00016438,2]
[361276159,1747414244148,-877.59,0.00016438,2]
[361276160,1747414244159,-595.52,0.00016438,2]
[361276161,1747414244170,-1046.01,0.00016438,2]
[361276162,1747414244182,-209.591432,0.00016438,2]
[361276163,1747414244193,-660.38,0.00016438,2]
[361276164,1747414244204,-209.591432,0.00016438,2]
[361276165,1747414244215,-400.0,0.00016438,2]
[361276166,1747414244226,-400.0,0.00016438,2]
[361276167,1747414244238,-185.43254231,0.00016438,2]
[361276168,1747414244249,-400.0,0.00016438,2]
[361276169,1747414244260,-400.0,0.00016438,2]
[361276170,1747414244272,-744.72,0.00016438,2]
[361276171,1747414244283,-154.151272,0.00016438,2]
[361276172,1747414244295,-1308.68,0.00016438,2]
[361276173,1747414244308,-403.40700432,0.00016438,2]
[361276174,1747414244321,-400.0,0.00016438,2]
[361276175,1747414244334,-209.591432,0.00016438,2]
[361276176,1747414244345,-404.7,0.00016438,2]
[361276177,1747414244356,-209.591432,0.00016438,2]
[361276178,1747414244368,-400.0,0.00016438,2]
[361276179,1747414244378,-996.08112798,0.00016438,2]
[361276180,1747414244448,-395.96887202,0.00016438,2]
[361276181,1747414244461,-650.2,0.00016438,2]
[361276182,1747414244472,-300.0,0.00016438,2]
[361276183,1747414244483,-151.0,0.00016438,2]
[361276184,1747414244494,-887.45,0.00016438,2]
[361276185,1747414244505,-550.29,0.00016438,2]
[361276186,1747414244516,-524.873826,0.00016438,2]
[361276187,1747414244527,-524.873826,0.00016438,2]
[361276188,1747414244543,-1032.92,0.00016438,2]
[361276189,1747414244556,-400.0,0.00016438,2]
[361276190,1747414244566,-1800.6,0.00016438,2]
[361276191,1747414244578,-485.50722864,0.00016438,2]
[361276192,1747414244589,-151.0,0.00016438,2]
[361276193,1747414244600,-464.21,0.00016438,2]
[361276194,1747414244613,-400.0,0.00016438,2]
[361276195,1747414244623,-816.11,0.00016438,2]
[361276196,1747414244634,-715.19,0.00016438,2]
[361276197,1747414244646,-400.0,0.00016438,2]
[361276198,1747414244657,-404.87,0.00016438,2]
[361276199,1747414244667,-400.0,0.00016438,2]
[361276200,1747414244678,-1078.11,0.00016438,2]
[361276201,1747414244689,-423.65,0.00016438,2]
[361276202,1747414244700,-1643.74,0.00016438,2]
[361276203,1747414244711,-400.0,0.00016438,2]
[361276204,1747414244722,-400.0,0.00016438,2]
[361276205,1747414244733,-400.0,0.00016438,2]
[361276206,1747414244744,-710.08,0.00016438,2]
[361276207,1747414244755,-400.0,0.00016438,2]
[361276208,1747414244766,-400.0,0.00016438,2]
[361276209,1747414244776,-400.0,0.00016438,2]
[361276210,1747414244787,-440.81,0.00016438,2]
[361276211,1747414244798,-334.339478,0.00016438,2]
[361276212,1747414244809,-400.0,0.00016438,2]
[361276213,1747414244820,-400.0,0.00016438,2]
[361276214,1747414244831,-400.0,0.00016438,2]
[361276215,1747414244844,-334.339478,0.00016438,2]
[361276216,1747414244854,-400.0,0.00016438,2]
[361276217,1747414244865,-1418.3,0.00016438,2]
[361276218,1747414244876,-400.0,0.00016438,2]
[361276219,1747414244887,-400.0,0.00016438,2]
[361276220,1747414244897,-654.58,0.00016438,2]
[361276221,1747414244908,-584.26,0.00016438,2]
[361276222,1747414244918,-400.0,0.00016438,2]
[361276223,1747414244929,-1724.86,0.00016438,2]
[361276224,1747414244939,-400.0,0.00016438,2]
[361276225,1747414244950,-400.0,0.00016438,2]
[361276226,1747414244962,-1206.07,0.00016438,2]
[361276227,1747414244973,-400.0,0.00016438,2]
[361276228,1747414244985,-553.4,0.00016438,2]
[361276229,1747414244995,-2171.09,0.00016438,2]
[361276230,1747414245006,-400.0,0.00016438,2]
[361276231,1747414245017,-2152.2,0.00016438,2]
[361276232,1747414245027,-400.0,0.00016438,2]
[361276233,1747414245038,-151.0,0.00016438,2]
[361276234,1747414245048,-848.34,0.00016438,2]
[361276235,1747414245058,-400.0,0.00016438,2]
[361276236,1747414245069,-400.0,0.00016438,2]
[361276237,1747414245079,-400.0,0.00016438,2]
[361276238,1747414245092,-400.0,0.00016438,2]
[361276239,1747414245103,-400.0,0.00016438,2]
[361276240,1747414245113,-400.0,0.00016438,2]
[361276241,1747414245124,-1011.39,0.00016438,2]
[361276242,1747414245134,-782.13,0.00016438,2]
[361276243,1747414245145,-151.0,0.00016438,2]
[361276244,1747414245157,-400.0,0.00016438,2]
[361276245,1747414245167,-400.0,0.00016438,2]
[361276246,1747414245178,-400.0,0.00016438,2]
[361276247,1747414245188,-970.0,0.00016438,2]
[361276248,1747414245199,-400.0,0.00016438,2]
[361276249,1747414245210,-511.98857428,0.00016438,2]
[361276250,1747414245220,-400.0,0.00016438,2]
[361276251,1747414245231,-235.26320503,0.00016438,2]
[361276252,1747414245242,-671.19,0.00016438,2]
[361276253,1747414245252,-522.01,0.00016438,2]
[361276254,1747414245263,-595.29,0.00016438,2]
[361276255,1747414245274,-512.94,0.00016438,2]
[361276256,1747414245285,-1126.63,0.00016438,2]
[361276257,1747414245295,-605.79,0.00016438,2]
[361276258,1747414245307,-465.06,0.00016438,2]
[361276259,1747414245317,-400.0,0.00016438,2]
[361276260,1747414245328,-400.0,0.00016438,2]
[361276261,1747414245341,-1098.49,0.00016438,2]
[361276262,1747414245352,-400.0,0.00016438,2]
[361276263,1747414245363,-400.0,0.00016438,2]
[361276264,1747414245374,-151.0,0.00016438,2]
[361276265,1747414245385,-877.81,0.00016438,2]
[361276266,1747414245396,-1692.12,0.00016438,2]
[361276267,1747414245407,-1073.6,0.00016438,2]
[361276268,1747414245420,-571.42,0.00016438,2]
[361276269,1747414245431,-400.0,0.00016438,2]
[361276270,1747414245442,-1269.01,0.00016438,2]
[361276271,1747414245455,-400.0,0.00016438,2]
[361276272,1747414245466,-1117.35,0.00016438,2]
[361276273,1747414245477,-400.0,0.00016438,2]
[361276274,1747414245488,-366.24162894,0.00016438,2]
[361276275,1747414245499,-400.0,0.00016438,2]
[361276276,1747414245510,-981.08,0.00016438,2]
[361276277,1747414245521,-413.61,0.00016438,2]
[361276278,1747414245533,-151.0,0.00016438,2]
[361276279,1747414245545,-200.0,0.00016438,2]
[361276280,1747414245556,-1271.09,0.00016438,2]
[361276281,1747414245567,-400.0,0.00016438,2]
[361276282,1747414245578,-400.0,0.00016438,2]
[361276283,1747414245590,-400.0,0.00016438,2]
[361276284,1747414245601,-953.86,0.00016438,2]
[361276285,1747414245613,-400.0,0.00016438,2]
[361276286,1747414245624,-416.18,0.00016438,2]
[361276287,1747414245635,-489.14346032,0.00016438,2]
[361276288,1747414245648,-400.0,0.00016438,2]
[361276289,1747414245659,-151.0,0.00016438,2]
[361276290,1747414245670,-151.0,0.00016438,2]
[361276291,1747414245682,-400.0,0.00016438,2]
[361276292,1747414245692,-151.0,0.00016438,2]
[361276293,1747414245703,-400.0,0.00016438,2]
[361276294,1747414245714,-866.85,0.00016438,2]
[361276295,1747414245726,-359.90916566,0.00016438,2]
[361276296,1747414245738,-200.0,0.00016438,2]
[361276297,1747414245749,-568.5,0.00016438,2]
[361276298,1747414245760,-556.43,0.00016438,2]
[361276299,1747414245771,-400.0,0.00016438,2]
[361276300,1747414245782,-1128.89,0.00016438,2]
[361276301,1747414245793,-1026.99,0.00016438,2]
[361276302,1747414245803,-300.49172854,0.00016438,2]
[361276303,1747414245814,-456.24,0.00016438,2]
[361276304,1747414245826,-780.06,0.00016438,2]
[361276305,1747414245836,-400.0,0.00016438,2]
[361276306,1747414245848,-1528.88,0.00016438,2]
[361276307,1747414245859,-400.0,0.00016438,2]
[361276308,1747414245871,-400.0,0.00016438,2]
[361276309,1747414245883,-400.0,0.00016438,2]
[361276310,1747414245895,-400.0,0.00016438,2]
[361276311,1747414245908,-400.0,0.00016438,2]
[361276315,1747414246601,-409.24,0.00016438,2]
[361276316,1747414246633,-427.45,0.00016438,2]
[361276317,1747414246659,-400.0,0.00016438,2]
[361276318,1747414246680,-400.0,0.00016438,2]
[361276319,1747414246690,-400.0,0.00016438,2]
[361276320,1747414246700,-400.0,0.00016438,2]
[361276321,1747414246709,-400.0,0.00016438,2]
[361276322,1747414246718,-400.0,0.00016438,2]
[361276323,1747414246728,-400.0,0.00016438,2]
[361276324,1747414246737,-400.0,0.00016438,2]
[361276325,1747414246747,-456.55,0.00016438,2]
[361276326,1747414246756,-400.0,0.00016438,2]
[361276327,1747414246766,-400.0,0.00016438,2]
[361276328,1747414246775,-869.37,0.00016438,2]
[361276329,1747414246785,-508.58,0.00016438,2]
[361276330,1747414246794,-400.0,0.00016438,2]
[361276331,1747414246803,-400.0,0.00016438,2]
[361276332,1747414246813,-400.0,0.00016438,2]
[361276333,1747414246822,-400.0,0.00016438,2]
[361276334,1747414246831,-400.0,0.00016438,2]
[361276335,1747414246842,-506.02,0.00016438,2]
[361276336,1747414246852,-822.55,0.00016438,2]
[361276337,1747414246862,-400.0,0.00016438,2]
[361276338,1747414246872,-840.1,0.00016438,2]
[361276339,1747414246882,-512.52390455,0.00016438,2]
[361276340,1747414246891,-400.0,0.00016438,2]
[361276341,1747414246900,-400.0,0.00016438,2]
[361276342,1747414246909,-400.0,0.00016438,2]
[361276343,1747414246919,-400.0,0.00016438,2]
[361276344,1747414246928,-1051.99,0.00016438,2]
[361276345,1747414246937,-400.0,0.00016438,2]
[361276346,1747414246946,-1060.75,0.00016438,2]
[361276347,1747414246955,-400.0,0.00016438,2]
[361276348,1747414246965,-545.6,0.00016438,2]
[361276349,1747414246974,-592.41,0.00016438,2]
[361276350,1747414246983,-1386.91,0.00016438,2]
[361276351,1747414246992,-400.0,0.00016438,2]
[361276352,1747414247001,-400.0,0.00016438,2]
[361276353,1747414247011,-682.44,0.00016438,2]
[361276354,1747414247019,-547.8,0.00016438,2]
[361276355,1747414247029,-400.0,0.00016438,2]
[361276356,1747414247038,-492.86,0.00016438,2]
[361276357,1747414247047,-151.0,0.00016438,2]
[361276358,1747414247057,-151.0,0.00016438,2]
[361276359,1747414247066,-151.0,0.00016438,2]
[361276360,1747414247075,-400.0,0.00016438,2]
[361276361,1747414247085,-400.0,0.00016438,2]
[361276362,1747414247097,-142.51273412,0.00016438,2]
[361276363,1747414248649,-257.48726588,0.00016438,2]
[361276364,1747414248658,-400.0,0.00016438,2]
[361276365,1747414248666,-422.22759033,0.00016438,2]
[361276366,1747414248675,-400.0,0.00016438,2]
[361276367,1747414248684,-1613.55,0.00016438,2]
[361276368,1747414248693,-17.04334378,0.00016438,2]
[361276369,1747414248778,-382.95665622,0.00016438,2]
[361276370,1747414248787,-400.0,0.00016438,2]
[361276371,1747414248796,-341.09885378,0.00016438,2]
[361276372,1747414248818,-58.90114622,0.00016438,2]
[361276373,1747414248827,-858.3,0.00016438,2]
[361276374,1747414248837,-534.7,0.00016438,2]
[361276375,1747414248847,-420.98,0.00016438,2]
[361276376,1747414248856,-814.67,0.00016438,2]
[361276377,1747414248866,-582.9,0.00016438,2]
[361276378,1747414248875,-407.92117711,0.00016438,2]
[361276379,1747414248885,-1078.69,0.00016438,2]
[361276380,1747414248894,-1414.39,0.00016438,2]
[361276381,1747414248904,-400.0,0.00016438,2]
[361276382,1747414248913,-400.0,0.00016438,2]
[361276383,1747414248923,-400.0,0.00016438,2]
[361276384,1747414248933,-400.0,0.00016438,2]
[361276385,1747414248942,-1652.9,0.00016438,2]